bitfinex/quotes_BTCUSD_20260311
["timestamp","ask_amount","ask_price","bid_price","bid_amount"]
[1773230332278,7.5e-05,69279.0,69270.0,0.03715257]
[1773230332684,0.00029501,69287.0,69270.0,0.03715257]
[1773230332985,0.07245868,69287.0,69270.0,0.03715257]
[1773230333547,0.00022001,69279.0,69270.0,0.03722757]
[1773230334152,0.00022001,69279.0,69271.0,0.07218027]
[1773230334361,0.00022001,69279.0,69272.0,0.0012]
[1773230334762,0.00029501,69287.0,69272.0,0.03835257]
[1773230335015,0.02919899,69282.0,69272.0,0.03835257]
[1773230335389,0.02919899,69282.0,69273.0,0.0012]
[1773230335723,0.02919899,69282.0,69270.0,7.5e-05]
[1773230335892,0.03471683,69282.0,69271.0,0.07338027]
[1773230336062,0.03471683,69282.0,69272.0,0.001]
[1773230336263,0.03471683,69282.0,69273.0,0.07217819]
[1773230336264,0.02919899,69282.0,69273.0,0.07217819]
[1773230336470,0.10136784,69282.0,69273.0,0.07217819]
[1773230337128,0.0001816,69283.0,69273.0,0.10933076]
[1773230337308,0.07234976,69283.0,69273.0,0.10933076]
[1773230338022,0.10154875,69283.0,69271.0,0.0012]
[1773230338220,0.10154875,69283.0,69270.0,7.5e-05]
[1773230338420,0.00555524,69282.0,69271.0,0.0012]
[1773230338826,0.00556916,69280.0,69270.0,0.0012]
[1773230339167,0.00556916,69279.0,69269.0,0.0012]
[1773230339371,0.00556916,69278.0,69269.0,0.0012]
[1773230339601,0.00556916,69278.0,69268.0,0.0012]
[1773230339931,0.00556916,69278.0,69266.0,0.07226023]
[1773230340134,0.00559038,69275.0,69266.0,7.5e-05]
[1773230340365,0.00559038,69273.0,69263.0,0.0002]
[1773230341392,7.5e-05,69274.0,69264.0,0.03719007]
[1773230341756,0.00557783,69273.0,69257.0,0.07226882]
[1773230342107,0.02912399,69270.0,69260.0,0.0012]
[1773230342454,0.02912399,69270.0,69258.0,0.0002]
[1773230342455,0.07218236,69269.0,69261.0,0.0012]
[1773230342668,0.00557783,69268.0,69261.0,0.0012]
[1773230342868,0.00557783,69268.0,69256.0,0.0002]
[1773230342869,0.00557783,69268.0,69256.0,1e-08]
[1773230343116,0.00560752,69265.0,69256.0,1e-08]
[1773230343341,0.02919899,69266.0,69256.0,1e-08]
[1773230343851,0.03485504,69266.0,69256.0,1e-08]
[1773230344470,0.07218652,69265.0,69256.0,1e-08]
[1773230345822,0.07318652,69265.0,69256.0,1e-08]
[1773230346246,0.00567819,69264.0,69256.0,1e-08]
[1773230346771,0.07218861,69263.0,69256.0,1e-08]
[1773230347003,0.00568687,69262.0,69256.0,1e-08]
[1773230347204,0.00568687,69262.0,69253.0,0.000275]
[1773230347205,0.00568687,69262.0,69253.0,1e-08]
[1773230347508,0.07218861,69263.0,69231.0,7.5e-05]
[1773230347509,0.0012,69261.0,69242.0,0.0012]
[1773230347678,0.02919899,69252.0,69242.0,0.0012]
[1773230348085,0.02919899,69252.0,69241.0,0.0012]
[1773230348474,0.02919899,69252.0,69240.0,0.07228727]
[1773230348693,0.07220112,69251.0,69240.0,0.07348727]
[1773230349230,0.07220112,69251.0,69240.0,0.07348709]
[1773230349626,0.07220112,69251.0,69240.0,0.07228729]
[1773230350132,0.07792456,69251.0,69249.0,0.0002]
[1773230350329,0.07792456,69251.0,69240.0,0.07228729]
[1773230350507,0.07792456,69251.0,69242.0,0.0002]
[1773230351095,0.07227516,69253.0,69242.0,0.0002]
[1773230351298,7.5e-05,69249.0,69242.0,0.0002]
[1773230352930,7.5e-05,69249.0,69243.0,0.03719007]
[1773230353131,7.5e-05,69249.0,69245.0,0.03719007]
[1773230353341,7.5e-05,69253.0,69245.0,0.03719007]
[1773230353941,0.001275,69257.0,69244.0,0.07220842]
[1773230353942,0.07226988,69257.0,69247.0,0.03719007]
[1773230354325,0.07226998,69257.0,69247.0,0.03719007]
[1773230354554,7.5e-05,69257.0,69247.0,0.03719007]
[1773230354971,0.07226989,69257.0,69247.0,0.03719007]
[1773230355168,7.5e-05,69257.0,69248.0,0.10939432]
[1773230355922,7.5e-05,69257.0,69248.0,0.07220425]
[1773230356074,7.5e-05,69257.0,69249.0,0.03719007]
[1773230357334,7.5e-05,69257.0,69250.0,0.07220216]
[1773230358525,7.5e-05,69257.0,69251.0,0.03719007]
[1773230358765,7.5e-05,69257.0,69247.0,0.0002]
[1773230358766,0.00571019,69257.0,69247.0,0.07240505]
[1773230358974,0.00571019,69257.0,69247.0,0.0002]
[1773230359388,0.07219591,69256.0,69247.0,0.0002]
[1773230361487,7.5e-05,69257.0,69248.0,0.03982765]
[1773230364242,7.5e-05,69257.0,69250.0,0.03982765]
[1773230364991,7.5e-05,69257.0,69249.0,0.0722782]
[1773230364992,7.5e-05,69262.0,69252.0,0.03982765]
[1773230365460,0.07248115,69266.0,69252.0,0.03982765]
[1773230365461,0.0724807,69266.0,69252.0,0.03982765]
[1773230366552,0.0724807,69266.0,69253.0,0.11202668]
[1773230366701,0.0724807,69266.0,69254.0,0.03982765]
[1773230368188,0.00548865,69265.0,69246.0,0.07340591]
[1773230368499,0.07768247,69258.0,69245.0,0.07360703]
[1773230368793,0.00546719,69257.0,69245.0,0.0014]
[1773230369229,0.00546719,69257.0,69245.0,0.07360737]
[1773230369562,0.00546719,69257.0,69246.0,0.0012]
[1773230370419,0.07219591,69256.0,69246.0,0.0012]
[1773230370666,0.0776444,69256.0,69245.0,0.0014]
[1773230370786,0.0776225,69256.0,69241.0,0.0012]
[1773230371814,0.0788225,69256.0,69241.0,0.0012]
[1773230372033,0.0788225,69256.0,69241.0,0.04102765]
[1773230372034,0.0798225,69256.0,69241.0,0.04102765]
[1773230372534,0.0798225,69256.0,69241.0,0.11323888]
[1773230372892,0.0788225,69256.0,69242.0,0.03982765]
[1773230373037,7.5e-05,69249.0,69242.0,0.03982765]
[1773230374043,0.02921646,69252.0,69242.0,0.03982765]
[1773230374230,7.5e-05,69253.0,69242.0,0.03982765]
[1773230374429,0.07319591,69256.0,69242.0,0.03982765]
[1773230374630,0.02921646,69252.0,69243.0,0.0012]
[1773230375044,0.02921646,69252.0,69242.0,0.11203796]
[1773230375245,0.02921646,69252.0,69243.0,0.0012]
[1773230376609,0.03956397,69250.0,69235.0,0.0002]
[1773230376816,0.03956397,69244.0,69230.0,0.0012]
[1773230376986,0.21504411,69251.0,69227.0,0.07230034]
[1773230376987,0.06878043,69241.0,69228.0,0.07301261]
[1773230377225,0.06878043,69241.0,69230.0,0.0012]
[1773230377616,0.06878043,69241.0,69231.0,0.001275]
[1773230377973,0.06878043,69241.0,69231.0,0.07349696]
[1773230378171,0.06978043,69241.0,69231.0,0.001275]
[1773230378391,0.06878043,69241.0,69231.0,0.001275]
[1773230378593,0.07221259,69240.0,69231.0,0.001275]
[1773230379008,0.07221259,69240.0,69231.0,7.5e-05]
[1773230379914,0.03956397,69239.0,69231.0,7.5e-05]
[1773230380822,0.07221467,69238.0,69231.0,7.5e-05]
[1773230382945,0.07321467,69238.0,69231.0,7.5e-05]
[1773230383156,0.07421467,69238.0,69231.0,7.5e-05]
[1773230383718,0.07321467,69238.0,69231.0,7.5e-05]
[1773230383917,0.11277864,69238.0,69231.0,7.5e-05]
[1773230384139,0.07321467,69238.0,69231.0,7.5e-05]
[1773230384339,0.03956397,69237.0,69231.0,7.5e-05]
[1773230384760,0.07221676,69236.0,69231.0,7.5e-05]
[1773230384977,0.07221676,69236.0,69226.0,0.03982765]
[1773230384978,0.07214176,69236.0,69226.0,0.03982765]
[1773230385525,0.07221676,69237.0,69226.0,0.03982765]
[1773230386456,0.001,69236.0,69226.0,0.03982765]
[1773230386652,0.001,69236.0,69227.0,0.04102765]
[1773230386861,0.0722178,69235.0,69227.0,0.07342602]
[1773230387080,0.0722178,69235.0,69228.0,0.03982765]
[1773230389143,0.07221363,69239.0,69228.0,0.03982765]
[1773230390074,0.07221363,69239.0,69228.0,0.11205272]
[1773230390250,0.07221363,69239.0,69228.0,0.04002765]
[1773230390543,0.07421363,69239.0,69228.0,0.0002]
[1773230390782,0.07321363,69239.0,69228.0,0.0002]
[1773230390993,0.07321363,69239.0,69224.0,0.03800053]
[1773230390994,0.07321363,69239.0,69209.0,0.07109969]
[1773230391195,0.07321363,69239.0,69192.0,0.00757579]
[1773230391196,0.04580852,69217.0,69186.0,0.07226895]
[1773230391322,0.11407129,69216.0,69187.0,0.03800053]
[1773230391511,0.0012,69215.0,69187.0,0.03920053]
[1773230391710,0.02922863,69210.0,69187.0,0.03920053]
[1773230391951,0.02922863,69200.0,69185.0,0.07226895]
[1773230392174,0.02922863,69200.0,69185.0,0.07227]
[1773230392175,0.02922863,69195.0,69185.0,0.07227]
[1773230392373,0.0012,69199.0,69184.0,0.03800053]
[1773230392531,0.07670816,69209.0,69183.0,0.07227104]
[1773230392532,0.07670816,69209.0,69186.0,0.03800053]
[1773230393160,0.07344613,69208.0,69188.0,0.03800053]
[1773230393363,0.08821425,69207.0,69188.0,0.03800053]
[1773230393569,0.001,69199.0,69188.0,0.03800053]
[1773230394583,0.02922863,69200.0,69188.0,0.03800053]
[1773230395449,0.05248862,69208.0,69190.0,0.03800053]
[1773230395763,0.0012,69207.0,69190.0,0.03800053]
[1773230396136,7.5e-05,69205.0,69190.0,0.03800053]
[1773230396341,0.11229709,69211.0,69190.0,0.03800053]
[1773230396342,0.04005218,69224.0,69192.0,0.04320995]
[1773230396584,0.26313267,69240.0,69212.0,0.04320995]
[1773230396585,0.0012,69228.0,69212.0,0.04320995]
[1773230396781,0.0012,69228.0,69211.0,0.03326628]
[1773230396782,0.02922863,69230.0,69214.0,0.04320995]
[1773230396929,0.02922863,69224.0,69213.0,0.0012]
[1773230397109,0.0012,69225.0,69214.0,0.04320995]
[1773230397320,0.04005218,69223.0,69200.0,1e-08]
[1773230397518,0.02922863,69220.0,69200.0,1e-08]
[1773230397724,0.02922863,69220.0,69201.0,0.04320995]
[1773230397918,0.02922863,69220.0,69214.0,0.001]
[1773230398118,7.5e-05,69223.0,69214.0,0.001]
[1773230398418,0.0012,69222.0,69205.0,0.0012]
[1773230398615,0.04005218,69214.0,69200.0,1e-08]
[1773230398941,0.02922863,69210.0,69200.0,1e-08]
[1773230399608,0.04005218,69212.0,69200.0,1e-08]
[1773230401026,0.11229464,69212.0,69200.0,1e-08]
[1773230401225,0.04005218,69209.0,69200.0,1e-08]
[1773230401373,0.04005218,69209.0,69196.0,0.07225849]
[1773230401574,0.08783582,69210.0,69191.0,0.07226371]
[1773230401797,0.07231893,69210.0,69192.0,0.04320995]
[1773230402000,0.04005218,69209.0,69191.0,0.07226371]
[1773230402604,0.001,69209.0,69192.0,0.04320995]
[1773230402808,0.001,69209.0,69168.0,8.32e-05]
[1773230402809,0.04005218,69191.0,69168.0,8.32e-05]
[1773230403138,0.04028218,69200.0,69169.0,0.04320995]
[1773230403292,1e-08,69200.0,69169.0,0.04320995]
[1773230403493,7.5e-05,69197.0,69171.0,0.04320995]
[1773230403701,0.08776083,69200.0,69173.0,0.04020995]
[1773230404041,1e-08,69200.0,69173.0,0.04020995]
[1773230404415,7.5e-05,69192.0,69173.0,0.04020995]
[1773230405533,7.5e-05,69188.0,69173.0,0.04020995]
[1773230405737,7.5e-05,69188.0,69175.0,0.04320995]
[1773230406057,7.5e-05,69192.0,69175.0,0.04320995]
[1773230407566,7.5e-05,69192.0,69175.0,0.04420995]
[1773230408017,7.5e-05,69192.0,69176.0,0.0722794]
[1773230408222,7.5e-05,69192.0,69177.0,0.04320995]
[1773230408438,0.08776083,69200.0,69177.0,0.04320995]
[1773230408673,1e-08,69200.0,69179.0,0.04320995]
[1773230409317,7.5e-05,69210.0,69179.0,0.04320995]
[1773230409525,1e-08,69218.0,69182.0,0.04320995]
[1773230410174,1e-08,69218.0,69184.0,0.04320995]
[1773230410381,0.0003897,69223.0,69184.0,0.04320995]
[1773230410528,0.0003897,69223.0,69186.0,0.04320995]
[1773230410732,0.00023,69225.0,69191.0,0.04320995]
[1773230411057,0.00023,69225.0,69193.0,0.04320995]
[1773230411259,7.5e-05,69231.0,69193.0,0.04320995]
[1773230411459,7.5e-05,69231.0,69201.0,0.04320995]
[1773230411638,7.5e-05,69231.0,69200.0,0.00023]
[1773230411639,7.5e-05,69231.0,69203.0,0.04320995]
[1773230412161,7.5e-05,69231.0,69205.0,0.04320995]
[1773230413728,7.5e-05,69231.0,69205.0,0.04420995]
[1773230414256,7.5e-05,69231.0,69207.0,0.04320995]
[1773230414611,0.01576482,69233.0,69209.0,0.04320995]
[1773230414766,0.00397683,69236.0,69211.0,0.03326628]
[1773230415006,0.00397683,69236.0,69213.0,0.04320995]
[1773230415585,1e-08,69236.0,69213.0,0.04320995]
[1773230415964,0.0003979,69245.0,69213.0,0.04320995]
[1773230416166,0.0003979,69245.0,69215.0,0.04320995]
[1773230416588,0.0003979,69245.0,69215.0,0.04313495]
[1773230417365,0.0003979,69245.0,69215.0,0.02837938]
[1773230417564,0.0003979,69245.0,69215.0,0.02937938]
[1773230418101,0.0003979,69245.0,69215.0,0.02837938]
[1773230418279,0.0003979,69245.0,69217.0,0.04320995]
[1773230418484,0.04005218,69243.0,69218.0,0.10136]
[1773230418687,0.04005218,69243.0,69220.0,0.04320995]
[1773230419107,0.04005218,69243.0,69214.0,0.07223972]
[1773230419108,18.54017228,69213.0,69212.0,0.11544758]
[1773230419294,18.26896584,69213.0,69212.0,0.11664758]
[1773230419498,18.26776585,69213.0,69212.0,0.11664758]
[1773230419741,18.26656586,69213.0,69212.0,0.11870932]
[1773230419919,18.26536587,69213.0,69212.0,0.11870932]
[1773230420265,18.26536587,69213.0,69208.0,0.1014]
[1773230420266,18.26368588,69213.0,69208.0,0.1014]
[1773230420411,18.26368588,69213.0,69205.0,0.07224911]
[1773230420612,18.26368588,69213.0,69206.0,0.001125]
[1773230421052,18.26368588,69213.0,69207.0,0.0012]
[1773230421519,16.34900968,69213.0,69212.0,0.03648657]
[1773230421709,16.31879752,69213.0,69212.0,0.07472666]
[1773230422469,16.31879752,69213.0,69212.0,0.14696846]
[1773230423293,14.86130404,69213.0,69212.0,0.10872837]
[1773230423496,14.86130404,69213.0,69212.0,0.15407506]
[1773230423497,12.87858993,69213.0,69212.0,0.15407506]
[1773230423752,8.11978492,69213.0,69212.0,0.10872837]
[1773230423956,8.11970992,69213.0,69212.0,0.10872837]
[1773230424075,7.97580552,69213.0,69212.0,0.15407506]
[1773230424274,7.90717593,69213.0,69212.0,0.15407506]
[1773230424478,7.9045306,69213.0,69212.0,0.15407506]
[1773230424674,7.76622141,69213.0,69212.0,0.10872837]
[1773230424936,7.76502142,69213.0,69212.0,0.39547506]
[1773230425169,7.76382143,69213.0,69212.0,0.39547506]
[1773230425344,7.76262144,69213.0,69212.0,0.39647506]
[1773230425520,7.7613158,69213.0,69212.0,0.39547506]
[1773230425724,7.76011581,69213.0,69212.0,0.39547506]
[1773230425924,7.76011581,69213.0,69212.0,0.39647506]
[1773230426125,7.67913897,69213.0,69212.0,0.21144837]
[1773230426329,7.67913897,69213.0,69212.0,0.25659506]
[1773230426537,0.796205,69212.0,69205.0,7.5e-05]
[1773230426736,7.67913897,69213.0,69206.0,0.0012]
[1773230426915,7.67913897,69213.0,69192.0,7.5e-05]
[1773230426916,0.05484681,69211.0,69192.0,7.5e-05]
[1773230427121,0.05484681,69211.0,69193.0,0.0012]
[1773230427331,0.05484681,69209.0,69193.0,0.0012]
[1773230428539,0.05484681,69209.0,69194.0,0.0722606]
[1773230429048,1.591755,69210.0,69194.0,0.0722606]
[1773230429253,1.591755,69210.0,69195.0,0.04534669]
[1773230429636,1.36201623,69210.0,69197.0,0.04534669]
[1773230429844,1.1735927,69210.0,69197.0,0.04534669]
[1773230430518,1.1735927,69210.0,69198.0,0.07225642]
[1773230431798,1.1735927,69210.0,69198.0,0.11760311]
[1773230432094,1.1735927,69210.0,69198.0,0.11860311]
[1773230432684,1.1735927,69210.0,69198.0,0.11760311]
[1773230432883,1.1735927,69210.0,69199.0,0.04534669]
[1773230434575,1.1735927,69210.0,69198.0,0.07225642]
[1773230434879,1.1735927,69210.0,69190.0,0.10168]
[1773230434880,0.07224493,69209.0,69190.0,0.10168]
[1773230435086,0.0443583,69206.0,69191.0,0.0012]
[1773230435289,0.11923306,69207.0,69192.0,0.0012]
[1773230435290,0.319606,69205.0,69192.0,0.0012]
[1773230435488,0.2752477,69205.0,69192.0,0.0012]
[1773230435834,0.0443583,69204.0,69193.0,0.0012]
[1773230435988,0.0443583,69204.0,69190.0,0.07226461]
[1773230436173,0.898345,69203.0,69191.0,0.0012]
[1773230436374,0.0443583,69202.0,69191.0,0.0012]
[1773230436609,0.319606,69202.0,69192.0,0.0012]
[1773230436807,0.0443583,69202.0,69192.0,0.0012]
[1773230438008,0.11761158,69202.0,69188.0,0.07233984]
[1773230438217,0.001,69202.0,69193.0,0.0012]
[1773230438579,0.07325251,69202.0,69193.0,0.0012]
[1773230438762,0.07225251,69202.0,69193.0,0.0012]
[1773230438974,0.07325251,69202.0,69193.0,0.0012]
[1773230439287,0.07225178,69203.0,69193.0,0.0012]
[1773230439494,1.1735927,69202.0,69193.0,0.0012]
[1773230439913,1.1735927,69202.0,69194.0,0.04534669]
[1773230439914,0.40412016,69202.0,69194.0,0.04534669]
[1773230440097,0.07223855,69216.0,69194.0,0.04534669]
[1773230440275,0.33974878,69209.0,69194.0,0.04534669]
[1773230440620,7.5e-05,69218.0,69194.0,0.04534669]
[1773230440621,7.5e-05,69205.0,69194.0,0.04534669]
[1773230440977,1e-08,69210.0,69195.0,0.07225955]
[1773230441179,7.5e-05,69218.0,69195.0,0.07225955]
[1773230441180,7.58413625,69213.0,69196.0,0.04534669]
[1773230441517,7.5e-05,69201.0,69196.0,0.04534669]
[1773230442068,7.58413625,69213.0,69196.0,0.04534669]
[1773230442471,7.5e-05,69197.0,69196.0,0.04634669]
[1773230442671,7.34093503,69213.0,69196.0,0.04734669]
[1773230442874,7.34093503,69213.0,69196.0,0.04634669]
[1773230443075,7.34093503,69213.0,69198.0,0.04534669]
[1773230443422,7.34093503,69213.0,69200.0,0.04534669]
[1773230443652,7.34093503,69213.0,69202.0,0.04534669]
[1773230444643,7.55707391,69213.0,69203.0,0.0012]
[1773230444867,7.55692391,69213.0,69203.0,0.0012]
[1773230445029,7.55692391,69213.0,69205.0,0.07224911]
[1773230445676,7.55692391,69213.0,69204.0,0.07224975]
[1773230445854,7.55692391,69213.0,69205.0,0.0012]
[1773230446054,7.55692391,69213.0,69206.0,0.0012]
[1773230446261,7.55692391,69213.0,69200.0,0.07225345]
[1773230446482,7.629165,69213.0,69193.0,0.0722606]
[1773230446680,0.0443583,69212.0,69194.0,0.0012]
[1773230447060,6.87244662,69213.0,69196.0,0.04534669]
[1773230447282,6.27444038,69213.0,69201.0,0.04534669]
[1773230447496,6.27444038,69213.0,69203.0,0.04534669]
[1773230448126,6.18021522,69213.0,69203.0,0.04534669]
[1773230448328,0.18339709,69213.0,69203.0,0.04534669]
[1773230448504,0.18339709,69213.0,69205.0,0.67751]
[1773230448701,0.18339709,69213.0,69206.0,0.04534669]
[1773230449293,0.16076777,69213.0,69208.0,0.04534669]
[1773230449490,0.07897875,69213.0,69210.0,0.04534669]
[1773230449850,0.07897875,69213.0,69212.0,0.21654099]
[1773230450698,1e-08,69214.0,69213.0,0.10206787]
[1773230450898,1e-08,69214.0,69213.0,0.20394787]
[1773230451312,1e-08,69214.0,69213.0,0.27618863]
[1773230451505,0.50521478,69214.0,69212.0,0.10188]
[1773230451708,7.5e-05,69218.0,69213.0,0.0012]
[1773230451935,7.5e-05,69218.0,69202.0,0.10206787]
[1773230451936,7.5e-05,69218.0,69214.0,0.0012]
[1773230452253,7.5e-05,69218.0,69203.0,0.0722512]
[1773230452254,0.18945817,69217.0,69215.0,0.0012]
[1773230452551,0.48945817,69217.0,69216.0,0.0012]
[1773230453838,0.3021414,69217.0,69216.0,0.10326787]
[1773230454038,0.3021414,69217.0,69216.0,0.0012]
[1773230454243,0.29007248,69217.0,69216.0,0.0012]
[1773230454442,7.5e-05,69223.0,69216.0,0.10326787]
[1773230454642,0.07221684,69236.0,69216.0,0.10326787]
[1773230455058,0.07221582,69237.0,69216.0,0.10326787]
[1773230455259,0.07221395,69239.0,69218.0,0.10206787]
[1773230455448,0.10704831,69242.0,69218.0,0.10206787]
[1773230455829,0.17925934,69242.0,69218.0,0.10206787]
[1773230456071,7.5e-05,69231.0,69218.0,0.10206787]
[1773230456253,0.17925934,69242.0,69218.0,0.10206787]
[1773230456447,0.00022001,69243.0,69220.0,0.08765227]
[1773230456646,0.00022001,69243.0,69218.0,0.10206787]
[1773230457068,7.5e-05,69240.0,69218.0,0.10206787]
[1773230457728,7.5e-05,69236.0,69220.0,0.10682683]
[1773230459671,7.5e-05,69236.0,69222.0,0.10682683]
[1773230459877,7.5e-05,69236.0,69224.0,0.10682683]
[1773230460394,7.5e-05,69236.0,69225.0,0.0012]
[1773230460653,7.5e-05,69236.0,69218.0,0.17906133]
[1773230460896,7.5e-05,69236.0,69220.0,0.10682683]
[1773230462051,7.5e-05,69236.0,69221.0,0.07223241]
[1773230462246,7.5e-05,69236.0,69222.0,0.10682683]
[1773230464180,7.5e-05,69240.0,69222.0,0.10682683]
[1773230464181,7.5e-05,69240.0,69224.0,0.10682683]
[1773230464385,7.5e-05,69240.0,69226.0,0.10682683]
[1773230465558,0.0003081,69240.0,69226.0,0.10682683]
[1773230466197,0.0003081,69240.0,69228.0,0.10682683]
[1773230467250,0.0725207,69240.0,69225.0,0.0012]
[1773230467453,0.0725207,69240.0,69226.0,0.0012]
[1773230467454,0.1718009,69239.0,69226.0,0.0012]
[1773230467657,0.1718009,69239.0,69226.0,0.10802683]
[1773230467969,0.00022001,69243.0,69226.0,0.10802683]
[1773230468206,0.00022001,69240.0,69228.0,0.10682683]
[1773230469161,0.00022001,69243.0,69228.0,0.10682683]
[1773230469993,0.00022001,69243.0,69231.0,7.5e-05]
[1773230470563,0.00022001,69243.0,69232.0,0.0012]
[1773230470760,0.00022001,69243.0,69229.0,0.07222372]
[1773230470921,0.00022001,69243.0,69233.0,0.0012]
[1773230471153,0.00022001,69243.0,69234.0,0.0012]
[1773230471560,0.00022001,69243.0,69229.0,0.07222352]
[1773230471761,0.00022001,69243.0,69235.0,0.0012]
[1773230472573,0.07242951,69243.0,69228.0,0.17905136]
[1773230472750,0.07242951,69243.0,69229.0,0.0012]
[1773230472956,0.07242951,69243.0,69230.0,0.0012]
[1773230473336,0.07242951,69243.0,69228.0,0.17905136]
[1773230473537,0.07242951,69243.0,69227.0,0.07230011]
[1773230473538,0.07242951,69243.0,69227.0,7.5e-05]
[1773230473738,0.07242951,69243.0,69228.0,0.0012]
[1773230473965,0.07242951,69243.0,69229.0,0.0012]
[1773230474941,0.07242951,69243.0,69222.0,0.18514546]
[1773230474942,0.07242951,69243.0,69218.0,0.000275]
[1773230475263,0.07242951,69243.0,69219.0,0.0012]
[1773230475430,0.07342951,69243.0,69219.0,0.0012]
[1773230475693,0.07242951,69243.0,69220.0,0.0012]
[1773230476809,0.07220946,69247.0,69220.0,0.0012]
[1773230476810,0.00022001,69271.0,69235.0,0.11262228]
[1773230477000,0.07225643,69270.0,69237.0,0.11262228]
[1773230477201,0.07248054,69266.0,69237.0,0.11262228]
[1773230477585,0.07240792,69264.0,69237.0,0.11254728]
[1773230477758,0.07240792,69264.0,69236.0,0.0012]
[1773230477759,0.07240792,69264.0,69239.0,0.11228614]
[1773230477922,0.0724078,69264.0,69239.0,0.11228614]
[1773230478347,0.0724078,69264.0,69239.0,0.11221114]
[1773230478683,0.07257778,69262.0,69239.0,0.11221114]
[1773230478829,0.07257778,69262.0,69241.0,0.11224864]
[1773230479026,0.07257778,69262.0,69243.0,0.11224864]
[1773230479027,0.0003881,69262.0,69243.0,0.11224864]
[1773230479480,7.5e-05,69305.0,69243.0,0.11224864]
[1773230479481,0.00022001,69290.0,69250.0,0.08788227]
[1773230479654,0.07216881,69282.0,69255.0,0.21574653]
[1773230479864,0.07216881,69282.0,69250.0,0.11313273]
[1773230479865,0.07216881,69282.0,69251.0,0.0012]
[1773230480063,0.00022001,69257.0,69252.0,0.11290273]
[1773230480263,0.00022001,69257.0,69253.0,0.0012]
[1773230480471,0.00022001,69257.0,69250.0,0.00023]
[1773230480684,0.00022001,69257.0,69250.0,0.00123]
[1773230480890,0.00022001,69257.0,69252.0,0.07220008]
[1773230481219,0.00022001,69257.0,69253.0,0.11290273]
[1773230481978,0.00039002,69282.0,69256.0,0.1723732]
[1773230482198,0.00039002,69282.0,69257.0,0.0012]
[1773230482604,0.00039002,69282.0,69251.0,0.07220106]
[1773230482911,0.00039002,69282.0,69252.0,0.0012]
[1773230483113,7.125e-05,69280.0,69253.0,0.0012]
[1773230483362,0.0012,69279.0,69253.0,0.0012]
[1773230483511,0.0012,69279.0,69254.0,0.0012]
[1773230484691,0.07216985,69281.0,69251.0,0.11281689]
[1773230484911,0.0012,69280.0,69256.0,0.11281689]
[1773230485116,0.07217194,69279.0,69257.0,0.07219486]
[1773230487392,0.07239093,69280.0,69258.0,0.11241425]
[1773230488868,0.07239093,69280.0,69259.0,0.0012]
[1773230489422,0.07217194,69279.0,69259.0,0.0012]
[1773230489615,0.07217194,69279.0,69252.0,0.18429591]
[1773230489616,0.07337194,69279.0,69252.0,0.18429591]
[1773230489838,0.07337194,69279.0,69256.0,0.0012]
[1773230491529,0.07337194,69279.0,69250.0,0.00023]
[1773230491530,0.07337194,69279.0,69250.0,0.00143]
[1773230491700,0.07337194,69279.0,69246.0,0.07238646]
[1773230491701,0.00023,69275.0,69246.0,0.0001803]
[1773230491999,0.00023,69275.0,69246.0,0.07238638]
[1773230492405,0.00023,69275.0,69246.0,0.0001803]
[1773230493203,0.0012,69274.0,69248.0,0.1114629]
[1773230493401,0.07217819,69273.0,69249.0,0.0722032]
[1773230494373,0.07217819,69273.0,69249.0,0.0702532]
[1773230494578,0.0012,69272.0,69249.0,0.0702532]
[1773230494793,0.07217819,69273.0,69249.0,0.0702532]
[1773230495018,0.0012,69272.0,69250.0,0.1126629]
[1773230495221,0.0012,69272.0,69251.0,0.11115581]
[1773230495445,0.07218027,69271.0,69252.0,0.07220008]
[1773230496549,0.07210527,69271.0,69270.0,7.5e-05]
[1773230496703,0.07210527,69271.0,69253.0,0.11115581]
[1773230496704,0.07210527,69271.0,69262.0,7.5e-05]
[1773230496899,0.07210527,69271.0,69253.0,0.11115581]
[1773230497140,0.07210527,69271.0,69257.0,7.5e-05]
[1773230497343,0.07218027,69272.0,69257.0,7.5e-05]
[1773230497520,0.0012,69270.0,69259.0,0.11084751]
[1773230498971,0.0012,69270.0,69257.0,7.5e-05]
[1773230500253,0.07218236,69269.0,69257.0,7.5e-05]
[1773230501454,0.16988368,69268.0,69257.0,7.5e-05]
[1773230501973,0.16961917,69268.0,69253.0,7.5e-05]
[1773230502215,0.07218444,69267.0,69253.0,7.5e-05]
[1773230502436,0.07218444,69267.0,69249.0,7.5e-05]
[1773230502756,0.07218444,69267.0,69236.0,0.07249114]
[1773230502948,0.07218444,69267.0,69236.0,0.000275]
[1773230503111,0.07218444,69267.0,69242.0,0.0002]
[1773230503700,0.00118011,69266.0,69236.0,0.000275]
[1773230504303,0.00118011,69259.0,69233.0,1e-08]
[1773230504499,0.00118011,69257.0,69233.0,1e-08]
[1773230504699,0.0012,69256.0,69229.0,1e-08]
[1773230504927,0.00086704,69254.0,69229.0,1e-08]
[1773230505093,0.0012,69253.0,69229.0,1e-08]
[1773230505291,7.5e-05,69244.0,69229.0,1e-08]
[1773230505517,0.0012,69243.0,69229.0,1e-08]
[1773230505920,7.5e-05,69244.0,69229.0,1e-08]
[1773230506133,7.5e-05,69244.0,69231.0,0.11050103]
[1773230506335,7.5e-05,69244.0,69229.0,1e-08]
[1773230509026,0.001075,69244.0,69229.0,1e-08]
[1773230510280,7.5e-05,69244.0,69229.0,1e-08]
[1773230510656,0.001075,69244.0,69229.0,1e-08]
[1773230510856,7.5e-05,69244.0,69229.0,1e-08]
[1773230511257,0.001075,69244.0,69229.0,1e-08]
[1773230511649,0.15043938,69239.0,69213.0,1e-08]
[1773230511825,0.00116,69238.0,69213.0,1e-08]
[1773230512402,0.07221572,69237.0,69213.0,1e-08]
[1773230514163,0.07321572,69237.0,69213.0,1e-08]
[1773230514368,0.07221572,69237.0,69213.0,1e-08]
[1773230514875,0.00116,69236.0,69213.0,1e-08]
[1773230516062,0.07421572,69237.0,69213.0,1e-08]
[1773230516310,0.07421572,69237.0,69213.0,0.10900878]
[1773230516541,0.07321572,69237.0,69213.0,0.10900878]
[1773230516722,0.0722178,69235.0,69213.0,0.10900878]
[1773230517489,0.0012,69234.0,69213.0,0.10900878]
[1773230517684,0.0012,69234.0,69206.0,0.0002]
[1773230517685,0.00023,69225.0,69198.0,0.10886601]
[1773230517890,0.00023,69225.0,69200.0,0.10886601]
[1773230518294,0.0012,69224.0,69200.0,0.10886601]
[1773230518490,0.0012,69223.0,69200.0,0.10886601]
[1773230518702,0.07245879,69225.0,69211.0,0.10886601]
[1773230518903,0.07245879,69225.0,69212.0,0.10886601]
[1773230519317,0.00123,69225.0,69212.0,0.10886601]
[1773230519519,0.07345831,69225.0,69212.0,0.10886601]
[1773230519719,0.3466554,69253.0,69212.0,0.10886601]
[1773230519720,0.07221423,69239.0,69212.0,0.10886601]
[1773230519962,0.001,69234.0,69212.0,0.10886601]
[1773230520121,0.15432323,69237.0,69212.0,0.10886601]
[1773230520736,0.07221676,69236.0,69213.0,0.07224076]